fUST/lending_fUST_20240422
["ID","MTS","AMOUNT","RATE_DAILY","PERIOD"]
[323161960,1713760238728,-160.45066493,0.00021916,2]
[323161961,1713760238737,-500.0,0.00021916,2]
[323161962,1713760238746,-227.60037396,0.00021916,2]
[323161963,1713760238755,-162.61317283,0.00021916,2]
[323161964,1713760238764,-500.0,0.00021916,2]
[323161965,1713760238773,-311.82873169,0.00021916,2]
[323161966,1713760238783,-500.0,0.00021917,2]
[323161967,1713760238792,-505.15359985,0.00021917,2]
[323161968,1713760238801,-500.0,0.00021917,2]
[323161969,1713760238810,-152.5171301,0.00021917,2]
[323161970,1713760238818,-500.0,0.00021917,2]
[323161971,1713760238827,-500.0,0.00021917,2]
[323161972,1713760238837,-500.0,0.00021917,2]
[323161973,1713760238846,-500.0,0.00021917,2]
[323161974,1713760238855,-500.0,0.00021917,2]
[323161975,1713760238863,-500.0,0.00021917,2]
[323161976,1713760238873,-2567.24,0.00021917,2]
[323161977,1713760238882,-500.0,0.00021917,2]
[323161978,1713760238892,-178.20100148,0.00021917,2]
[323161979,1713760238902,-500.0,0.00021917,2]
[323161980,1713760238911,-622.76421091,0.00021917,2]
[323161981,1713760238921,-500.0,0.00021917,2]
[323161982,1713760238929,-504.82378182,0.00021917,2]
[323161983,1713760238942,-518.52,0.00021917,2]
[323161984,1713760238955,-500.0,0.00021917,2]
[323161985,1713760238965,-500.0,0.00021917,2]
[323161986,1713760238974,-554.96398746,0.00021917,2]
[323161987,1713760238984,-500.0,0.00021917,2]
[323161988,1713760238994,-518.32428352,0.00021917,2]
[323161989,1713760239004,-500.0,0.00021917,2]
[323161990,1713760239012,-500.0,0.00021917,2]
[323161991,1713760239022,-508.12802659,0.00021917,2]
[323161992,1713760239031,-500.0,0.00021917,2]
[323161993,1713760239040,-280.8049058,0.00021917,2]
[323161994,1713760239049,-588.17450781,0.00021917,2]
[323161995,1713760239060,-861.97,0.00021917,2]
[323161996,1713760239069,-519.3781021,0.00021917,2]
[323161997,1713760239077,-500.0,0.00021917,2]
[323161998,1713760239087,-2000.0,0.00021917,2]
[323161999,1713760239097,-1325.17,0.00021917,2]
[323162000,1713760239106,-500.0,0.00021917,2]
[323162001,1713760239116,-794.2,0.00021917,2]
[323162002,1713760239125,-500.0,0.00021917,2]
[323162003,1713760239135,-500.02979066,0.00021917,2]
[323162004,1713760239144,-2405.81,0.00021917,2]
[323162005,1713760239154,-617.41,0.00021917,2]
[323162006,1713760239163,-2318.44,0.00021917,2]
[323162007,1713760239172,-500.0,0.00021917,2]
[323162008,1713760239181,-1219.73,0.00021917,2]
[323162009,1713760239192,-600.43351323,0.00021917,2]
[323162010,1713760239202,-423.90741455,0.00021917,2]
[323162011,1713760239212,-500.0,0.00021917,2]
[323162012,1713760239222,-500.0,0.00021917,2]
[323162013,1713760239231,-500.0,0.00021917,2]
[323162014,1713760239240,-500.0,0.00021917,2]
[323162015,1713760239250,-300.05130895,0.00021917,2]
[323162016,1713760239258,-500.0,0.00021917,2]
[323162017,1713760239267,-500.0,0.00021917,2]
[323162018,1713760239276,-947.1,0.00021917,2]
[323162019,1713760239285,-500.0,0.00021917,2]
[323162020,1713760239294,-501.23020246,0.00021917,2]
[323162021,1713760239303,-504.78648204,0.00021917,2]
[323162022,1713760239312,-500.0,0.00021917,2]
[323162023,1713760239321,-743.41,0.00021917,2]
[323162024,1713760239329,-560.86,0.00021917,2]
[323162025,1713760239338,-500.0,0.00021917,2]
[323162026,1713760239347,-1833.7,0.00021917,2]
[323162027,1713760239357,-500.0,0.00021917,2]
[323162028,1713760239365,-500.0,0.00021917,2]
[323162029,1713760239374,-1089.38,0.00021917,2]
[323162030,1713760239384,-500.0,0.00021917,2]
[323162031,1713760239394,-500.0,0.00021917,2]
[323162032,1713760239404,-500.0,0.00021917,2]
[323162033,1713760239413,-500.0,0.00021917,2]
[323162034,1713760239422,-500.0,0.00021917,2]
[323162035,1713760239431,-2169.63,0.00021917,2]
[323162036,1713760239442,-1313.12,0.00021917,2]
[323162037,1713760239452,-692.38,0.00021917,2]
[323162038,1713760239461,-500.0,0.00021917,2]
[323162039,1713760239472,-621.29040509,0.00021917,2]
[323162040,1713760239480,-760.42,0.00021917,2]
[323162041,1713760239490,-2788.95,0.00021917,2]
[323162042,1713760239499,-500.0,0.00021917,2]
[323162043,1713760239509,-500.0,0.00021917,2]
[323162044,1713760239518,-500.0,0.00021917,2]
[323162045,1713760239528,-500.0,0.00021917,2]
[323162046,1713760239537,-500.0,0.00021917,2]
[323162047,1713760239546,-1593.66,0.00021917,2]
[323162048,1713760239556,-2326.47,0.00021917,2]
[323162049,1713760239565,-614.25,0.00021917,2]
[323162050,1713760239575,-1037.93,0.00021917,2]
[323162051,1713760239583,-1812.83,0.00021917,2]
[323162052,1713760239594,-500.0,0.00021917,2]
[323162053,1713760239604,-1055.0,0.00021917,2]
[323162054,1713760239613,-500.0,0.00021917,2]
[323162055,1713760239623,-500.0,0.00021917,2]
[323162056,1713760239633,-500.0,0.00021917,2]
[323162057,1713760239643,-509.44398326,0.00021917,2]
[323162058,1713760239652,-500.0,0.00021917,2]
[323162059,1713760239662,-512.04698451,0.00021917,2]
[323162060,1713760239671,-2402.15,0.00021917,2]
[323162061,1713760239680,-500.0,0.00021917,2]
[323162062,1713760239692,-500.0,0.00021917,2]
[323162063,1713760239701,-754.13,0.00021917,2]
[323162064,1713760239710,-500.0,0.00021917,2]
[323162065,1713760239839,-500.0,0.00021917,2]
[323162066,1713760239849,-3414.19,0.00021917,2]
[323162067,1713760239859,-500.0,0.00021917,2]
[323162068,1713760239869,-500.0,0.00021917,2]
[323162069,1713760239878,-500.0,0.00021917,2]
[323162070,1713760239887,-500.0,0.00021917,2]
[323162071,1713760239896,-500.0,0.00021917,2]
[323162072,1713760239905,-618.38,0.00021917,2]
[323162073,1713760239914,-500.0,0.00021917,2]
[323162074,1713760239923,-583.48,0.00021917,2]
[323162075,1713760239933,-387.84950899,0.00021917,2]
[323162076,1713760239946,-500.0,0.00021917,2]
[323162077,1713760239959,-500.0,0.00021917,2]
[323162078,1713760239968,-884.74,0.00021917,2]
[323162079,1713760239977,-500.0,0.00021917,2]
[323162080,1713760239986,-6998.87,0.00021917,2]
[323162081,1713760239995,-500.0,0.00021917,2]
[323162082,1713760240004,-500.0,0.00021917,2]
[323162083,1713760240013,-500.0,0.00021917,2]
[323162084,1713760240024,-500.0,0.00021917,2]
[323162085,1713760240034,-1369.97,0.00021917,2]
[323162087,1713760240042,-1541.9,0.00021917,2]
[323162089,1713760240052,-180.88720274,0.00021917,2]
[323162090,1713760240061,-500.0,0.00021917,2]
[323162091,1713760240070,-151.0,0.00021917,2]
[323162092,1713760240080,-6768.89,0.00021917,2]
[323162093,1713760240089,-500.0,0.00021917,2]
[323162094,1713760240098,-500.0,0.00021917,2]
[323162095,1713760240106,-500.0,0.00021917,2]
[323162096,1713760240115,-503.7245007,0.00021917,2]
[323162097,1713760240124,-555.25,0.00021917,2]
[323162098,1713760240133,-500.0,0.00021917,2]
[323162099,1713760240143,-500.0,0.00021917,2]
[323162101,1713760240152,-500.0,0.00021917,2]
[323162102,1713760240161,-500.0,0.00021917,2]
[323162103,1713760240170,-1245.48,0.00021917,2]
[323162104,1713760240180,-506.64710236,0.00021917,2]
[323162105,1713760240192,-507.29413158,0.00021917,2]
[323162106,1713760240201,-1984.84,0.00021917,2]
[323162108,1713760240211,-501.01463896,0.00021917,2]
[323162109,1713760240219,-500.0,0.00021917,2]
[323162110,1713760240228,-500.0,0.00021917,2]
[323162111,1713760240237,-851.23,0.00021917,2]
[323162112,1713760240246,-500.0,0.00021917,2]
[323162113,1713760240256,-500.0,0.00021917,2]
[323162114,1713760240265,-500.0,0.00021917,2]
[323162115,1713760240274,-500.0,0.00021917,2]
[323162116,1713760240283,-3152.52,0.00021917,2]
[323162117,1713760240293,-660.32,0.00021917,2]
[323162118,1713760240302,-500.0,0.00021917,2]
[323162119,1713760240310,-3795.36,0.00021917,2]
[323162120,1713760240319,-906.19,0.00021917,2]
[323162121,1713760240328,-501.70370906,0.00021917,2]
[323162122,1713760240336,-500.0,0.00021917,2]
[323162123,1713760240346,-500.0,0.00021917,2]
[323162124,1713760240354,-500.0,0.00021917,2]
[323162125,1713760240363,-500.0,0.00021917,2]
[323162126,1713760240372,-3996.39,0.00021917,2]
[323162127,1713760240381,-500.0,0.00021917,2]
[323162128,1713760240390,-500.0,0.00021917,2]
[323162129,1713760240398,-2879.82,0.00021917,2]
[323162130,1713760240408,-500.0,0.00021917,2]
[323162131,1713760240416,-918.37,0.00021917,2]
[323162132,1713760240425,-500.0,0.00021917,2]
[323162133,1713760240434,-766.22,0.00021917,2]
[323162134,1713760240443,-9936.52,0.00021917,2]
[323162135,1713760240452,-500.0,0.00021917,2]
[323162136,1713760240461,-512.15596834,0.00021917,2]
[323162137,1713760240470,-500.0,0.00021917,2]
[323162138,1713760240479,-1736.27,0.00021917,2]
[323162139,1713760240488,-500.0,0.00021917,2]
[323162140,1713760240496,-1484.35,0.00021917,2]
[323162141,1713760240506,-703.33,0.00021917,2]
[323162142,1713760240515,-501.57914784,0.00021917,2]
[323162143,1713760240523,-500.0,0.00021917,2]
[323162144,1713760240533,-500.0,0.00021917,2]
[323162145,1713760240542,-1797.41,0.00021917,2]
[323162146,1713760240551,-500.11279958,0.00021917,2]
[323162147,1713760240559,-500.0,0.00021917,2]
[323162148,1713760240568,-2574.24,0.00021917,2]
[323162149,1713760240577,-854.05,0.00021917,2]
[323162150,1713760240586,-851.53,0.00021917,2]
[323162151,1713760240595,-582.48,0.00021917,2]
[323162152,1713760240604,-500.0,0.00021917,2]
[323162153,1713760240613,-1439.16,0.00021917,2]
[323162154,1713760240622,-646.6,0.00021917,2]
[323162155,1713760240630,-500.0,0.00021917,2]
[323162156,1713760240639,-500.0,0.00021917,2]
[323162157,1713760240648,-505.74,0.00021917,2]
[323162158,1713760240657,-1138.52,0.00021917,2]
[323162159,1713760240666,-500.0,0.00021917,2]
[323162160,1713760240675,-581.6,0.00021917,2]
[323162161,1713760240684,-2726.08,0.00021917,2]
[323162162,1713760240694,-1356.65,0.00021917,2]
[323162163,1713760240703,-500.0,0.00021917,2]
[323162164,1713760240713,-500.0,0.00021917,2]
[323162165,1713760240722,-500.0,0.00021917,2]
[323162166,1713760240731,-500.0,0.00021917,2]
[323162167,1713760240740,-1232.26,0.00021917,2]
[323162168,1713760240749,-500.0,0.00021917,2]
[323162169,1713760240759,-784.73,0.00021917,2]
[323162170,1713760240768,-2798.59,0.00021917,2]
[323162171,1713760240776,-500.0,0.00021917,2]
[323162172,1713760240786,-604.56,0.00021917,2]
[323162173,1713760240795,-500.0,0.00021917,2]
[323162174,1713760240803,-502.83666308,0.00021917,2]
[323162175,1713760240812,-500.0,0.00021917,2]
[323162176,1713760240821,-500.0,0.00021917,2]
[323162177,1713760240830,-500.0,0.00021917,2]
[323162178,1713760240839,-657.66,0.00021917,2]
[323162179,1713760240847,-444.78775694,0.00021917,2]
[323162180,1713760240856,-500.0,0.00021917,2]
[323162181,1713760240865,-15264.86,0.00021917,2]
[323162182,1713760240874,-236.4521685,0.00021917,2]
[323162183,1713760240883,-1369.53,0.00021917,2]
[323162184,1713760240892,-1369.53,0.00021917,2]
[323162185,1713760240901,-865.83,0.00021917,2]
[323162186,1713760240910,-500.0,0.00021917,2]
[323162187,1713760240919,-623.1,0.00021917,2]
[323162188,1713760240928,-1200.15,0.00021917,2]
[323162189,1713760240938,-500.0,0.00021917,2]
[323162190,1713760240949,-500.0,0.00021917,2]
[323162191,1713760240958,-500.0,0.00021917,2]
[323162192,1713760240967,-948.12,0.00021917,2]
[323162193,1713760240976,-9893.44,0.00021917,2]
[323162194,1713760240985,-2045.22,0.00021917,2]
[323162195,1713760240994,-2036.78,0.00021917,2]
[323162196,1713760241002,-500.0,0.00021917,2]
[323162197,1713760241011,-500.0,0.00021917,2]
[323162198,1713760241021,-500.0,0.00021917,2]
[323162199,1713760241030,-1062.69,0.00021917,2]
[323162200,1713760241039,-1846.75,0.00021917,2]
[323162201,1713760241048,-500.0,0.00021917,2]
[323162202,1713760241057,-1822.9,0.00021917,2]
[323162203,1713760241066,-151.0,0.00021917,2]
[323162204,1713760241074,-164.620116,0.00021917,2]
[323162205,1713760241083,-400.91364486,0.00021917,2]
[323162206,1713760241092,-10542.19,0.00021917,2]
[323162207,1713760241101,-449.30269817,0.00021917,2]
[323162208,1713760241109,-500.0,0.00021917,2]
[323162209,1713760241118,-511.46,0.00021917,2]
[323162210,1713760241127,-500.0,0.00021917,2]
[323162211,1713760241136,-500.0,0.00021917,2]
[323162212,1713760241145,-2652.38,0.00021917,2]
[323162213,1713760241154,-500.0,0.00021917,2]
[323162214,1713760241163,-500.0,0.00021917,2]
[323162215,1713760241173,-7620.32821456,0.00021917,2]
[323162261,1713760243612,-373.96449856,0.00021917,2]
[323162263,1713760243622,-378.94199999,0.00021917,2]
[323162598,1713760682669,10000.0,0.000266,120]
[323162599,1713760701155,6960.04,0.000266,120]
[323162604,1713760835616,2000.0,0.000266,120]
[323162636,1713761432657,-306.67326884,0.00021777,7]
[323162690,1713761438727,-1265.60288076,0.00021776,2]
[323162691,1713761438736,-2823.92926192,0.00021777,7]
[323162692,1713761438745,-419.39507495,0.00021777,2]
[323162693,1713761438754,-300.0,0.00021816,2]
[323162694,1713761438763,-1997.13709817,0.00021817,2]
[323162695,1713761438772,-2000.0,0.00021817,2]
[323162696,1713761438780,-1757.98426045,0.00021817,2]
[323162697,1713761438789,-1473.52639306,0.00021817,2]
[323162698,1713761438798,-1950.0,0.000219,2]
[323162699,1713761438807,-498.26278836,0.00021916,2]
[323162700,1713761438816,-192.21940931,0.00021916,2]
[323162701,1713761438825,-199.44275265,0.00021917,2]
[323162702,1713761438834,-155.24034413,0.00021917,2]
[323162703,1713761438843,-500.0,0.00021917,2]
[323162704,1713761438852,-500.0,0.00021917,2]
[323162705,1713761438862,-500.0,0.00021917,2]
[323162706,1713761438871,-500.0,0.00021917,2]
[323162707,1713761438882,-500.0,0.00021917,2]
[323162708,1713761438892,-500.0,0.00021917,2]
[323162709,1713761438901,-591.69,0.00021917,2]
[323162710,1713761438910,-500.0,0.00021917,2]
[323162711,1713761438918,-500.0,0.00021917,2]
[323162712,1713761438929,-500.0,0.00021917,2]
[323162713,1713761438938,-500.0,0.00021917,2]
[323162714,1713761438947,-880.06,0.00021917,2]
[323162715,1713761438956,-500.0,0.00021917,2]
[323162716,1713761438965,-500.0,0.00021917,2]
[323162717,1713761438974,-500.0,0.00021917,2]
[323162718,1713761438983,-500.0,0.00021917,2]
[323162719,1713761438992,-746.44,0.00021917,2]
[323162720,1713761439001,-514.4965161,0.00021917,2]
[323162721,1713761439010,-500.0,0.00021917,2]
[323162722,1713761439020,-500.0,0.00021917,2]
[323162723,1713761439029,-500.0,0.00021917,2]
[323162724,1713761439038,-652.0,0.00021917,2]
[323162725,1713761439048,-537.49,0.00021917,2]
[323162726,1713761439057,-217.86644057,0.00021917,2]
[323162727,1713761439066,-807.67,0.00021917,2]
[323162728,1713761439076,-500.0,0.00021917,2]
[323162729,1713761439087,-500.0,0.00021917,2]
[323162730,1713761439096,-500.0,0.00021917,2]
[323162731,1713761439105,-2079.23,0.00021917,2]
[323162732,1713761439115,-500.0,0.00021917,2]
[323162733,1713761439124,-500.0,0.00021917,2]
[323162734,1713761439136,-500.0,0.00021917,2]
[323162735,1713761439146,-500.0,0.00021917,2]
[323162736,1713761439156,-796.76,0.00021917,2]
[323162737,1713761439165,-2229.54,0.00021917,2]
[323162738,1713761439175,-722.71,0.00021917,2]
[323162739,1713761439184,-506.72288247,0.00021917,2]
[323162740,1713761439194,-500.0,0.00021917,2]
[323162741,1713761439204,-500.0,0.00021917,2]
[323162742,1713761439214,-1011.04,0.00021917,2]
[323162743,1713761439223,-588.66,0.00021917,2]
[323162744,1713761439232,-500.0,0.00021917,2]
[323162745,1713761439242,-500.6276836,0.00021917,2]
[323162746,1713761439251,-500.0,0.00021917,2]
[323162747,1713761439261,-540.73,0.00021917,2]
[323162748,1713761439271,-500.0,0.00021917,2]
[323162749,1713761439282,-660.0,0.00021917,2]
[323162750,1713761439292,-500.0,0.00021917,2]
[323162751,1713761439303,-823.73,0.00021917,2]
[323162752,1713761439313,-500.0,0.00021917,2]
[323162753,1713761439322,-500.0,0.00021917,2]
[323162754,1713761439332,-500.0,0.00021917,2]
[323162755,1713761439344,-502.71402019,0.00021917,2]
[323162756,1713761439353,-630.53716964,0.00021917,2]
[323162757,1713761439362,-500.0,0.00021917,2]
[323162758,1713761439372,-502.85245066,0.00021917,2]
[323162759,1713761439382,-151.0,0.00021917,2]
[323162760,1713761439391,-500.0,0.00021917,2]
[323162761,1713761439402,-1355.64,0.00021917,2]
[323162762,1713761439413,-1355.64,0.00021917,2]
[323162763,1713761439424,-1355.64,0.00021917,2]
[323162764,1713761439435,-1355.64,0.00021917,2]
[323162765,1713761439444,-1355.64,0.00021917,2]
[323162766,1713761439452,-1355.64,0.00021917,2]
[323162767,1713761439461,-500.0,0.00021917,2]
[323162768,1713761439471,-1355.64,0.00021917,2]
[323162769,1713761439481,-1355.64,0.00021917,2]
[323162770,1713761439490,-1355.64,0.00021917,2]
[323162771,1713761439499,-1355.64,0.00021917,2]
[323162772,1713761439510,-500.0,0.00021917,2]
[323162773,1713761439519,-500.0,0.00021917,2]
[323162774,1713761439529,-761.11,0.00021917,2]
[323162775,1713761439538,-500.0,0.00021917,2]
[323162776,1713761439547,-501.49946375,0.00021917,2]
[323162777,1713761439557,-622.51499696,0.00021917,2]
[323162778,1713761439566,-500.0,0.00021917,2]
[323162779,1713761439575,-500.0,0.00021917,2]
[323162780,1713761439585,-500.0,0.00021917,2]
[323162781,1713761439594,-311.21786437,0.00021917,2]
[323162782,1713761439603,-500.0,0.00021917,2]
[323162783,1713761439743,-500.0,0.00021917,2]
[323162784,1713761439754,-2432.61,0.00021917,2]
[323162785,1713761439763,-500.0,0.00021917,2]
[323162786,1713761439772,-500.0,0.00021917,2]
[323162787,1713761439781,-500.0,0.00021917,2]
[323162788,1713761439790,-500.0,0.00021917,2]
[323162789,1713761439801,-310.27417816,0.00021917,2]
[323162790,1713761439810,-500.0,0.00021917,2]
[323162791,1713761439819,-2000.0,0.00021917,2]
[323162792,1713761439829,-514.86978296,0.00021917,2]
[323162793,1713761439838,-500.0,0.00021917,2]
[323162794,1713761439847,-500.0,0.00021917,2]
[323162795,1713761439856,-1845.52,0.00021917,2]
[323162796,1713761439865,-712.44,0.00021917,2]
[323162797,1713761439874,-500.0,0.00021917,2]
[323162798,1713761439883,-500.0,0.00021917,2]
[323162799,1713761439894,-867.03,0.00021917,2]
[323162800,1713761439904,-500.0,0.00021917,2]
[323162801,1713761439913,-500.0,0.00021917,2]
[323162802,1713761439922,-2305.57,0.00021917,2]
[323162803,1713761439933,-500.0,0.00021917,2]
[323162804,1713761439942,-3141.48,0.00021917,2]
[323162805,1713761439951,-500.0,0.00021917,2]
[323162806,1713761439960,-503.7245007,0.00021917,2]
[323162807,1713761439970,-1757.3,0.00021917,2]
[323162808,1713761439979,-500.0,0.00021917,2]
[323162809,1713761439988,-506.40479449,0.00021917,2]
[323162810,1713761439998,-500.0,0.00021917,2]
[323162811,1713761440008,-500.0,0.00021917,2]
[323162812,1713761440017,-500.0,0.00021917,2]
[323162813,1713761440026,-500.0,0.00021917,2]
[323162814,1713761440036,-500.0,0.00021917,2]
[323162815,1713761440045,-609.93860702,0.00021917,2]
[323162816,1713761440054,-513.16,0.00021917,2]
[323162817,1713761440063,-500.0,0.00021917,2]
[323162818,1713761440072,-500.0,0.00021917,2]
[323162819,1713761440082,-501.70370906,0.00021917,2]
[323162820,1713761440091,-500.0,0.00021917,2]
[323162821,1713761440101,-1168.91,0.00021917,2]
[323162822,1713761440110,-506.64710236,0.00021917,2]
[323162823,1713761440119,-500.0,0.00021917,2]
[323162824,1713761440129,-500.0,0.00021917,2]
[323162825,1713761440138,-500.0,0.00021917,2]
[323162826,1713761440147,-500.0,0.00021917,2]
[323162827,1713761440156,-500.0,0.00021917,2]
[323162828,1713761440167,-500.0,0.00021917,2]
[323162829,1713761440178,-1249.87,0.00021917,2]
[323162830,1713761440187,-500.0,0.00021917,2]
[323162831,1713761440196,-500.0,0.00021917,2]
[323162833,1713761440206,-500.0,0.00021917,2]
[323162835,1713761440214,-292.7,0.00021917,2]
[323162836,1713761440224,-500.0,0.00021917,2]
[323162837,1713761440233,-663.19,0.00021917,2]
[323162838,1713761440243,-2672.74,0.00021917,2]
[323162839,1713761440252,-500.0,0.00021917,2]
[323162840,1713761440262,-1246.69,0.00021917,2]
[323162841,1713761440271,-500.0,0.00021917,2]
[323162842,1713761440281,-648.97,0.00021917,2]
[323162843,1713761440290,-500.0,0.00021917,2]
[323162844,1713761440299,-500.0,0.00021917,2]
[323162845,1713761440308,-500.0,0.00021917,2]
[323162846,1713761440317,-500.0,0.00021917,2]
[323162847,1713761440327,-500.0,0.00021917,2]
[323162848,1713761440336,-1043.99,0.00021917,2]
[323162849,1713761440349,-500.0,0.00021917,2]
[323162850,1713761440358,-500.0,0.00021917,2]
[323162851,1713761440367,-502.34284996,0.00021917,2]
[323162852,1713761440377,-500.0,0.00021917,2]
[323162853,1713761440387,-500.0,0.00021917,2]
[323162854,1713761440396,-500.0,0.00021917,2]
[323162855,1713761440406,-500.0,0.00021917,2]
[323162856,1713761440416,-500.11279958,0.00021917,2]
[323162857,1713761440426,-500.0,0.00021917,2]
[323162858,1713761440435,-500.0,0.00021917,2]
[323162859,1713761440445,-500.0,0.00021917,2]
[323162860,1713761440454,-500.0,0.00021917,2]
[323162861,1713761440463,-500.0,0.00021917,2]
[323162862,1713761440473,-500.0,0.00021917,2]
[323162863,1713761440482,-500.0,0.00021917,2]
[323162864,1713761440491,-5265.16,0.00021917,2]
[323162865,1713761440501,-816.81,0.00021917,2]
[323162866,1713761440510,-500.0,0.00021917,2]
[323162867,1713761440520,-500.0,0.00021917,2]
[323162869,1713761440529,-500.0,0.00021917,2]
[323162870,1713761440539,-500.0,0.00021917,2]
[323162871,1713761440549,-994.68,0.00021917,2]
[323162872,1713761440557,-1258.41,0.00021917,2]
[323162873,1713761440567,-500.0,0.00021917,2]
[323162874,1713761440576,-500.0,0.00021917,2]
[323162875,1713761440586,-500.0,0.00021917,2]
[323162876,1713761440595,-198.90967801,0.00021917,2]
[323162877,1713761440604,-663.53,0.00021917,2]
[323162878,1713761440614,-234.01687267,0.00021917,2]
[323162879,1713761440623,-900.18,0.00021917,2]
[323162880,1713761440633,-500.0,0.00021917,2]
[323162881,1713761440642,-1565.7,0.00021917,2]
[323162882,1713761440651,-500.0,0.00021917,2]
[323162883,1713761440660,-500.0,0.00021917,2]
[323162884,1713761440669,-500.0,0.00021917,2]
[323162885,1713761440680,-236.4521685,0.00021917,2]
[323162886,1713761440690,-500.0,0.00021917,2]
[323162887,1713761440699,-500.0,0.00021917,2]
[323162888,1713761440708,-500.0,0.00021917,2]
[323162889,1713761440718,-500.0,0.00021917,2]
[323162890,1713761440727,-500.0,0.00021917,2]
[323162891,1713761440736,-526.82,0.00021917,2]
[323162892,1713761440745,-338.59205646,0.00021917,2]
[323162893,1713761440755,-500.0,0.00021917,2]
[323162894,1713761440764,-500.0,0.00021917,2]
[323162895,1713761440773,-500.0,0.00021917,2]
[323162896,1713761440782,-500.0,0.00021917,2]
[323162897,1713761440792,-500.0,0.00021917,2]
[323162898,1713761440801,-778.82,0.00021917,2]
[323162899,1713761440810,-501.9183311,0.00021917,2]
[323162900,1713761440820,-500.0,0.00021917,2]
[323162901,1713761440830,-187.84943586,0.00021917,2]
[323162902,1713761440839,-500.0,0.00021917,2]
[323162903,1713761440848,-604.56,0.00021917,2]
[323162904,1713761440858,-1547.37,0.00021917,2]
[323162905,1713761440867,-65.10171652,0.00021917,2]
[323164712,1713762587035,400.65062776,0.00019178,2]
[323164738,1713762631906,-364.8548493,0.00021248,2]
[323164739,1713762631916,-643.0548864,0.00021249,7]
[323164742,1713762631964,-2487.54764436,0.00021249,7]
[323164743,1713762631974,-1054.6690673,0.0002125,2]
[323164744,1713762631984,-1950.0,0.000217,2]
[323164745,1713762631993,-419.39507495,0.000217,2]
[323164746,1713762632002,-300.0,0.00021816,2]
[323164747,1713762632012,-2000.0,0.00021817,2]
[323164748,1713762632021,-1997.13709817,0.00021817,2]
[323164749,1713762632030,-1473.52639306,0.00021817,2]
[323164750,1713762632040,-192.21940931,0.00021916,2]
[323164751,1713762632049,-498.26278836,0.00021916,2]
[323164752,1713762632058,-3000.0,0.00021916,2]
[323164753,1713762632067,-3000.0,0.00021916,2]
[323164754,1713762632076,-3000.0,0.00021916,2]
[323164755,1713762632085,-3000.0,0.00021916,2]
[323164756,1713762632095,-3000.0,0.00021916,2]
[323164757,1713762632104,-3000.0,0.00021916,2]
[323164758,1713762632114,-3000.0,0.00021916,2]
[323164759,1713762632124,-2438.73488118,0.00021916,2]
[323164760,1713762632134,-160.55070373,0.00021916,2]
[323164761,1713762632144,-160.0,0.00021916,2]
[323164762,1713762632153,-160.0,0.00021916,2]
[323164763,1713762632163,-10520.16416164,0.00021917,2]
[323164779,1713762637898,-105270.39528863,0.00021917,2]
[323164780,1713762637907,-500.0,0.00021917,2]
[323164781,1713762637916,-500.0,0.00021917,2]
[323164783,1713762637926,-514.86978296,0.00021917,2]